[Event "Srdja Dragasevic Memorial-A 2024"]
[Site "Cetinje"]
[Date "2024.06.29"]
[Round "9.9"]
[White "Tomic, Aleksandar"]
[Black "Asllani, Muhamet"]
[Result "1-0"]
[ECO "D97"]
[WhiteElo "2388"]
[BlackElo "2219"]
[Annotator "RC"]
[PlyCount "91"]
[EventDate "2024.06.23"]
[EventType "swiss"]
[EventCountry "MNE"]
[SourceTitle "playchess.com"]
[Source "ChessBase"]
[SourceQuality "1"]
[TimeControl "40/5400+30:1800+30"]

1. d4 {[%emt 0:03:01]} d5 {[%emt 0:00:33]} 2. c4 {[%emt 0:00:18]} dxc4 {[%emt 0:00:22]} 3. Nf3 {[%emt 0:01:22]} Nf6 {[%emt 0:00:14]} 4. Qa4+ {[%emt 0:02:26]} c6 {[%emt 0:00:27]} 5. Qxc4 {[%emt 0:00:21]} g6 {[%emt 0:00:28]} 6. Nc3 {[%emt 0:02:51]} Bg7 {[%emt 0:00:07]} 7. e4 {[%emt 0:02:18]} O-O {[%emt 0:00:13]} 8. h3 {[%emt 0:01:39]} a5 {[%emt 0:02:07]} 9. Be2 {[%emt 0:02:07]} b5 {[%emt 0:00:08]} 10. Qd3 {[%emt 0:00:45]} Ba6 {[%emt 0:08:09]} 11. Qc2 {[%emt 0:00:54]} Nbd7 {[%emt 0:01:23]} 12. O-O {[%emt 0:02:14]} Nb6 {[%emt 0:00:31]} 13. Rd1 {[%emt 0:02:19]} Qc8 {[%emt 0:01:45]} 14. a3 {[%emt 0:06:42]} Nfd7 {[%emt 0:04:32]} 15. e5 {[%emt 0:05:40]} Nd5 {[%emt 0:02:12]} 16. Ne4 {[%emt 0:02:30]} f5 {[%emt 0:01:23]} 17. Neg5 {[%emt 0:02:31]} N7b6 {[%emt 0:00:16]} 18. h4 {[%emt 0:00:54]} h6 {[%emt 0:00:21]} 19. Nh3 {[%emt 0:00:17]} e6 {[%emt 0:00:13]} 20. Nf4 {[%emt 0:08:17]} Nxf4 {[%emt 0:01:06]} 21. Bxf4 {[%emt 0:00:14]} Nd5 {[%emt 0:00:03]} 22. Qd2 {[%emt 0:01:09]} Kh7 {[%emt 0:00:36]} 23. Rac1 {[%emt 0:00:44]} Qd7 {[%emt 0:00:29]} 24. Ne1 {[%emt 0:03:31]} b4 {[%emt 0:01:14]} 25. Bxa6 {[%emt 0:04:43]} Rxa6 {[%emt 0:00:11]} 26. Nd3 {[%emt 0:01:04]} Rb6 {[%emt 0:03:23]} 27. a4 {[%emt 0:00:58]} Qe7 {[%emt 0:01:09]} 28. g3 {[%emt 0:01:04]} Rg8 {[%emt 0:00:33]} 29. Qe2 {[%emt 0:01:43]} Bf8 {[%emt 0:02:09]} 30. Rc4 {[%emt 0:03:21]} Qf7 {[%emt 0:01:25]} 31. Kg2 {[%emt 0:01:13]} Be7 {[%emt 0:00:31]} 32. Bd2 {[%emt 0:02:18]} g5 {[%emt 0:01:17]} 33. hxg5 {[%emt 0:00:33]} hxg5 {[%emt 0:00:21]} 34. Rh1+ {[%emt 0:00:39]} Kg7 {[%emt 0:00:07]} 35. Rcc1 {[%emt 0:00:35]} Rh8 {[%emt 0:03:04]} 36. Rxh8 {[%emt 0:01:46]} Kxh8 {[%emt 0:00:07]} 37. Rh1+ {[%emt 0:00:13]} Kg7 {[%emt 0:00:03]} 38. Nc5 {[%emt 0:15:46]} Qg6 {[%emt 0:05:10]} 39. Nb3 {[%emt 0:02:07]} Rb8 {[%emt 0:05:45]} 40. Nxa5 {[%emt 0:00:00]} Ra8 {[%emt 0:00:00]} 41. Nxc6 {[%emt 0:03:40]} Rxa4 {[%emt 0:00:59]} 42. Nxe7 {[%emt 0:16:21]} Nxe7 {[%emt 0:00:26]} 43. Qb5 {[%emt 0:01:31]} Ra8 {[%emt 0:02:03]} 44. Qb7 {[%emt 0:00:52]} Re8 {[%emt 0:00:05]} 45. Bxb4 {[%emt 0:00:21]} Kf7 {[%emt 0:00:03]} 46. Rc1 {[%emt 0:00:39]} 1-0

[Event "Srdja Dragasevic Memorial-A 2024"]
[Site "Cetinje"]
[Date "2024.06.29"]
[Round "9.10"]
[White "Kosic, Dragan"]
[Black "Pogorelskikh, Sofia"]
[Result "1/2-1/2"]
[ECO "D46"]
[WhiteElo "2382"]
[BlackElo "2216"]
[Annotator "RC"]
[PlyCount "152"]
[EventDate "2024.06.23"]
[EventType "swiss"]
[EventCountry "MNE"]
[SourceTitle "playchess.com"]
[Source "ChessBase"]
[SourceQuality "1"]
[TimeControl "40/5400+30:1800+30"]

1. d4 {[%emt 0:01:34]} d5 {[%emt 0:00:16]} 2. c4 {[%emt 0:00:17]} e6 {[%emt 0:00:25]} 3. Nc3 {[%emt 0:00:11]} c6 {[%emt 0:00:27]} 4. e3 {[%emt 0:00:20]} Nf6 {[%emt 0:01:12]} 5. Nf3 {[%emt 0:00:05]} Nbd7 {[%emt 0:00:24]} 6. Qc2 {[%emt 0:00:05]} Bd6 {[%emt 0:00:58]} 7. Bd3 {[%emt 0:00:08]} O-O {[%emt 0:02:33]} 8. O-O {[%emt 0:00:27]} dxc4 {[%emt 0:10:31]} 9. Bxc4 {[%emt 0:00:37]} a6 {[%emt 0:01:05]} 10. Rd1 {[%emt 0:00:49]} b5 {[%emt 0:01:01]} 11. Bd3 {[%emt 0:02:57]} Qc7 {[%emt 0:03:44]} 12. e4 {[%emt 0:02:35]} e5 {[%emt 0:01:51]} 13. Ne2 {[%emt 0:05:50]} c5 {[%emt 0:04:23]} 14. dxc5 {[%emt 0:01:03]} Nxc5 {[%emt 0:04:21]} 15. Bg5 {[%emt 0:01:07]} Bg4 {[%emt 0:08:13]} 16. Nh4 {[%emt 0:10:40]} Nxd3 {[%emt 0:08:59]} 17. Qxd3 {[%emt 0:00:30]} Be7 {[%emt 0:01:05]} 18. Rac1 {[%emt 0:10:37]} Qa5 {[%emt 0:03:39]} 19. a3 {[%emt 0:16:19]} Rfd8 {[%emt 0:02:52]} 20. Qe3 {[%emt 0:01:34]} h6 {[%emt 0:04:31]} 21. Bxf6 {[%emt 0:06:03]} Bxf6 {[%emt 0:00:24]} 22. Nf3 {[%emt 0:00:07]} b4 {[%emt 0:06:38]} 23. h3 {[%emt 0:07:27]} Rxd1+ {[%emt 0:07:05]} 24. Rxd1 {[%emt 0:00:21]} Be6 {[%emt 0:00:38]} 25. axb4 {[%emt 0:03:08]} Qxb4 {[%emt 0:00:40]} 26. Rd2 {[%emt 0:00:06]} a5 {[%emt 0:03:15]} 27. Nc1 {[%emt 0:02:51]} Rc8 {[%emt 0:04:47]} 28. Nd3 {[%emt 0:04:41]} Qb5 {[%emt 0:00:42]} 29. Rd1 {[%emt 0:03:05]} a4 {[%emt 0:02:19]} 30. Rd2 {[%emt 0:02:48]} Bb3 {[%emt 0:02:16]} 31. Kh2 {[%emt 0:01:59]} Bc2 {[%emt 0:06:46]} 32. Nde1 {[%emt 0:01:42]} Bb1 {[%emt 0:02:00]} 33. Qe2 {[%emt 0:08:12]} Rb8 {[%emt 0:02:10]} 34. Qe3 {[%emt 0:02:38]} Qb3 {[%emt 0:01:14]} 35. Qc5 {[%emt 0:02:46]} Bxe4 {[%emt 0:01:21]} 36. Nxe5 {[%emt 0:01:16]} Qb4 {[%emt 0:01:41]} 37. Qc7 {[%emt 0:00:29]} Bxe5+ {[%emt 0:01:05]} 38. Qxe5 {[%emt 0:00:02]} Qxd2 {[%emt 0:00:24]} 39. Qxb8+ {[%emt 0:00:38]} Kh7 {[%emt 0:00:06]} 40. Qe5 {[%emt 0:00:00]} Qxe1 {[%emt 0:00:00]} 41. f3 {[%emt 0:01:20]} f5 {[%emt 0:03:21]} 42. fxe4 {[%emt 0:00:09]} Qxe4 {[%emt 0:03:59]} 43. Qc3 {[%emt 0:00:54]} h5 {[%emt 0:08:56]} 44. Kg3 {[%emt 0:00:35]} h4+ {[%emt 0:01:50]} 45. Kf2 {[%emt 0:00:05]} Qf4+ {[%emt 0:01:06]} 46. Kg1 {[%emt 0:01:20]} Kg6 {[%emt 0:05:15]} 47. Qc5 {[%emt 0:02:30]} Qe4 {[%emt 0:01:17]} 48. Qd6+ {[%emt 0:00:52]} Kg5 {[%emt 0:01:36]} 49. Qd2+ {[%emt 0:00:25]} Qf4 {[%emt 0:01:46]} 50. Qd8+ {[%emt 0:00:15]} Kh5 {[%emt 0:00:34]} 51. Qh8+ {[%emt 0:01:05]} Qh6 {[%emt 0:01:07]} 52. Qe8+ {[%emt 0:00:18]} Qg6 {[%emt 0:01:25]} 53. Qxa4 {[%emt 0:02:02]} Qb6+ {[%emt 0:00:08]} 54. Kh2 {[%emt 0:00:12]} Qb8+ {[%emt 0:00:37]} 55. Kh1 {[%emt 0:01:08]} Qxb2 {[%emt 0:00:14]} 56. Qe8+ {[%emt 0:00:16]} g6 {[%emt 0:00:19]} 57. Qe7 {[%emt 0:00:22]} Qb1+ {[%emt 0:00:46]} 58. Kh2 {[%emt 0:00:39]} Qe4 {[%emt 0:00:23]} 59. Qf6 {[%emt 0:00:44]} Qf4+ {[%emt 0:01:46]} 60. Kh1 {[%emt 0:00:20]} Qc1+ {[%emt 0:00:31]} 61. Kh2 {[%emt 0:00:06]} Qc7+ {[%emt 0:00:18]} 62. Kh1 {[%emt 0:00:21]} Qd7 {[%emt 0:01:36]} 63. Kh2 {[%emt 0:07:30]} g5 {[%emt 0:01:20]} 64. Qh8+ {[%emt 0:01:42]} Kg6 {[%emt 0:00:06]} 65. Qg8+ {[%emt 0:00:06]} Qg7 {[%emt 0:00:50]} 66. Qe6+ {[%emt 0:00:29]} Qf6 {[%emt 0:00:08]} 67. Qg8+ {[%emt 0:00:16]} Kh6 {[%emt 0:00:12]} 68. Kh1 {[%emt 0:00:42]} g4 {[%emt 0:01:50]} 69. hxg4 {[%emt 0:00:29]} Qa1+ {[%emt 0:00:16]} 70. Kh2 {[%emt 0:00:14]} Qe5+ {[%emt 0:00:09]} 71. Kh1 {[%emt 0:00:16]} Qe1+ {[%emt 0:00:11]} 72. Kh2 {[%emt 0:00:13]} Qg3+ {[%emt 0:00:08]} 73. Kg1 {[%emt 0:01:25]} Qxg4 {[%emt 0:00:38]} 74. Qh8+ {[%emt 0:00:38]} Kg5 {[%emt 0:00:12]} 75. Qg7+ {[%emt 0:00:34]} Kf4 {[%emt 0:00:08]} 76. Qd4+ {[%emt 0:00:12]} Kg5 {[%emt 0:05:31]} 1/2-1/2

[Event "Srdja Dragasevic Memorial-A 2024"]
[Site "Cetinje"]
[Date "2024.06.29"]
[Round "9.13"]
[White "Levi, Netanel"]
[Black "Willy, Stephen"]
[Result "0-1"]
[ECO "C56"]
[WhiteElo "2152"]
[BlackElo "2046"]
[Annotator "RC"]
[PlyCount "124"]
[EventDate "2024.06.23"]
[EventType "swiss"]
[EventCountry "MNE"]
[SourceTitle "playchess.com"]
[Source "ChessBase"]
[SourceQuality "1"]
[TimeControl "40/5400+30:1800+30"]

1. e4 {[%emt 0:00:15]} e5 {[%emt 0:00:26]} 2. Nf3 {[%emt 0:00:04]} Nc6 {[%emt 0:00:06]} 3. Bc4 {[%emt 0:00:06]} Nf6 {[%emt 0:00:06]} 4. d4 {[%emt 0:00:13]} exd4 {[%emt 0:00:09]} 5. e5 {[%emt 0:00:02]} Ng4 {[%emt 0:02:04]} 6. O-O {[%emt 0:08:39]} d6 {[%emt 0:00:26]} 7. exd6 {[%emt 0:06:39]} Qxd6 {[%emt 0:00:12]} 8. h3 {[%emt 0:04:24]} Nf6 {[%emt 0:01:00]} 9. Ng5 {[%emt 0:01:39]} Nd8 {[%emt 0:11:29]} 10. c3 {[%emt 0:06:15]} h6 {[%emt 0:06:40]} 11. Re1+ {[%emt 0:00:09]} Be7 {[%emt 0:00:16]} 12. Nf3 {[%emt 0:00:22]} Be6 {[%emt 0:00:59]} 13. Bxe6 {[%emt 0:01:18]} Nxe6 {[%emt 0:00:14]} 14. Qa4+ {[%emt 0:00:29]} c6 {[%emt 0:05:04]} 15. Nxd4 {[%emt 0:04:05]} Nxd4 {[%emt 0:00:27]} 16. Qxd4 {[%emt 0:01:10]} Qxd4 {[%emt 0:02:17]} 17. cxd4 {[%emt 0:00:01]} Kd7 {[%emt 0:08:47]} 18. Nc3 {[%emt 0:01:35]} Bb4 {[%emt 0:01:28]} 19. Rd1 {[%emt 0:05:38]} Bxc3 {[%emt 0:03:06]} 20. bxc3 {[%emt 0:00:02]} b5 {[%emt 0:00:52]} 21. Ba3 {[%emt 0:02:31]} Rhe8 {[%emt 0:02:47]} 22. Kf1 {[%emt 0:00:58]} Ke6 {[%emt 0:02:21]} 23. Re1+ {[%emt 0:16:47]} Kd5 {[%emt 0:01:46]} 24. Re5+ {[%emt 0:00:26]} Rxe5 {[%emt 0:01:23]} 25. dxe5 {[%emt 0:00:01]} Ne4 {[%emt 0:10:35]} 26. Rd1+ {[%emt 0:01:59]} Kxe5 {[%emt 0:01:00]} 27. Rd7 {[%emt 0:02:36]} Nxc3 {[%emt 0:03:19]} 28. Rxf7 {[%emt 0:02:10]} Nxa2 {[%emt 0:01:53]} 29. f4+ {[%emt 0:02:48]} Kd4 {[%emt 0:06:50]} 30. Rxg7 {[%emt 0:04:13]} b4 {[%emt 0:03:41]} 31. Bb2+ {[%emt 0:00:08]} Nc3 {[%emt 0:04:05]} 32. f5 {[%emt 0:02:54]} a5 {[%emt 0:10:30]} 33. f6 {[%emt 0:01:48]} a4 {[%emt 0:02:17]} 34. Rg4+ {[%emt 0:09:30]} Kc5 {[%emt 0:00:17]} 35. Bxc3 {[%emt 0:06:22]} bxc3 {[%emt 0:00:07]} 36. Ke2 {[%emt 0:00:02]} Rd8 {[%emt 0:04:25]} 37. Rxa4 {[%emt 0:03:03]} c2 {[%emt 0:00:14]} 38. Ra1 {[%emt 0:00:05]} Kc4 {[%emt 0:00:07]} 39. g4 {[%emt 0:01:56]} Kc3 {[%emt 0:01:04]} 40. h4 {[%emt 0:00:00]} Rd2+ {[%emt 0:00:00]} 41. Kf3 {[%emt 0:19:31]} Rd1 {[%emt 0:00:46]} 42. Ra6 {[%emt 0:02:07]} Rf1+ {[%emt 0:00:42]} 43. Ke4 {[%emt 0:00:29]} Rxf6 {[%emt 0:00:10]} 44. g5 {[%emt 0:00:50]} hxg5 {[%emt 0:00:28]} 45. hxg5 {[%emt 0:00:08]} c1=Q {[%emt 0:00:54]} 46. gxf6 {[%emt 0:00:16]} Qe1+ {[%emt 0:00:09]} 47. Kf5 {[%emt 0:00:54]} Qf1+ {[%emt 0:00:06]} 48. Ke6 {[%emt 0:00:13]} Qxa6 {[%emt 0:00:07]} 49. f7 {[%emt 0:00:05]} Qf1 {[%emt 0:00:31]} 50. Ke7 {[%emt 0:00:19]} c5 {[%emt 0:00:13]} 51. f8=Q {[%emt 0:00:41]} Qxf8+ {[%emt 0:00:06]} 52. Kxf8 {[%emt 0:00:06]} c4 {[%emt 0:00:15]} 53. Ke7 {[%emt 0:00:09]} Kd2 {[%emt 0:00:06]} 54. Kd6 {[%emt 0:00:07]} c3 {[%emt 0:00:05]} 55. Kd5 {[%emt 0:00:05]} c2 {[%emt 0:00:05]} 56. Ke4 {[%emt 0:00:05]} c1=Q {[%emt 0:00:07]} 57. Kf4 {[%emt 0:00:04]} Qe1 {[%emt 0:00:22]} 58. Kf3 {[%emt 0:00:06]} Qh4 {[%emt 0:00:18]} 59. Kg2 {[%emt 0:00:06]} Ke2 {[%emt 0:00:10]} 60. Kg1 {[%emt 0:00:08]} Qg4+ {[%emt 0:00:10]} 61. Kh1 {[%emt 0:00:06]} Kf2 {[%emt 0:00:28]} 62. Kh2 {[%emt 0:00:06]} Qg2# {[%emt 0:40:23]} 0-1

[Event "Srdja Dragasevic Memorial-A 2024"]
[Site "Cetinje"]
[Date "2024.06.29"]
[Round "9.14"]
[White "Ivanovic, Bozidar"]
[Black "Kolmakov, Ivan D."]
[Result "1-0"]
[ECO "C00"]
[WhiteElo "2371"]
[BlackElo "1902"]
[Annotator "RC"]
[PlyCount "157"]
[EventDate "2024.06.23"]
[EventType "swiss"]
[EventCountry "MNE"]
[SourceTitle "playchess.com"]
[Source "ChessBase"]
[SourceQuality "1"]
[TimeControl "40/5400+30:1800+30"]

1. e4 {[%emt 0:00:04]} e6 {[%emt 0:00:06]} 2. d3 {[%emt 0:00:30]} d5 {[%emt 0:00:07]} 3. Nd2 {[%emt 0:00:12]} Nf6 {[%emt 0:00:14]} 4. g3 {[%emt 0:00:17]} dxe4 {[%emt 0:00:06]} 5. dxe4 {[%emt 0:00:09]} Nc6 {[%emt 0:00:09]} 6. Bg2 {[%emt 0:06:16]} e5 {[%emt 0:00:25]} 7. Ngf3 {[%emt 0:00:30]} Bc5 {[%emt 0:00:07]} 8. O-O {[%emt 0:00:09]} O-O {[%emt 0:00:09]} 9. c3 {[%emt 0:00:54]} a5 {[%emt 0:00:04]} 10. h3 {[%emt 0:16:16]} b6 {[%emt 0:00:33]} 11. Re1 {[%emt 0:01:56]} Ba6 {[%emt 0:00:18]} 12. Bf1 {[%emt 0:00:19]} Bxf1 {[%emt 0:03:42]} 13. Kxf1 {[%emt 0:00:12]} Qd3+ {[%emt 0:21:48]} 14. Qe2 {[%emt 0:00:39]} Rad8 {[%emt 0:00:46]} 15. a4 {[%emt 0:03:13]} Rd7 {[%emt 0:10:47]} 16. Qxd3 {[%emt 0:02:32]} Rxd3 {[%emt 0:00:02]} 17. Kg2 {[%emt 0:00:12]} Rfd8 {[%emt 0:00:39]} 18. Nc4 {[%emt 0:00:30]} Nd7 {[%emt 0:11:52]} 19. Bd2 {[%emt 0:17:14]} Be7 {[%emt 0:03:30]} 20. Be3 {[%emt 0:00:19]} f6 {[%emt 0:00:36]} 21. Re2 {[%emt 0:09:42]} Nc5 {[%emt 0:00:33]} 22. Bxc5 {[%emt 0:00:05]} Bxc5 {[%emt 0:00:04]} 23. Rd2 {[%emt 0:03:18]} Rxd2 {[%emt 0:06:14]} 24. Nfxd2 {[%emt 0:00:12]} Nb8 {[%emt 0:05:22]} 25. Nb3 {[%emt 0:02:21]} Na6 {[%emt 0:01:01]} 26. Kf3 {[%emt 0:02:12]} Kf7 {[%emt 0:03:12]} 27. Ke2 {[%emt 0:01:07]} Ke6 {[%emt 0:09:17]} 28. f3 {[%emt 0:00:19]} g6 {[%emt 0:03:33]} 29. Rd1 {[%emt 0:05:42]} Rxd1 {[%emt 0:03:31]} 30. Kxd1 {[%emt 0:00:04]} Bf2 {[%emt 0:02:32]} 31. g4 {[%emt 0:00:08]} Nc5 {[%emt 0:00:18]} 32. Nxc5+ {[%emt 0:00:08]} Bxc5 {[%emt 0:00:02]} 33. Ke2 {[%emt 0:00:44]} h5 {[%emt 0:02:46]} 34. Kd3 {[%emt 0:01:20]} hxg4 {[%emt 0:05:46]} 35. hxg4 {[%emt 0:00:11]} Kd7 {[%emt 0:05:03]} 36. g5 {[%emt 0:02:30]} Ke6 {[%emt 0:00:28]} 37. gxf6 {[%emt 0:00:47]} Kxf6 {[%emt 0:00:01]} 38. Ke2 {[%emt 0:00:13]} Ke6 {[%emt 0:01:08]} 39. b3 {[%emt 0:00:16]} Kf6 {[%emt 0:00:21]} 40. Nb2 {[%emt 0:00:00]} Bd6 {[%emt 0:00:00]} 41. Nd3 {[%emt 0:02:13]} Ke6 {[%emt 0:15:08]} 42. b4 {[%emt 0:07:12]} c6 {[%emt 0:06:09]} 43. bxa5 {[%emt 0:08:13]} bxa5 {[%emt 0:00:09]} 44. Nb2 {[%emt 0:05:42]} Kf6 {[%emt 0:04:40]} 45. Nc4 {[%emt 0:00:13]} Bc7 {[%emt 0:00:03]} 46. Kf2 {[%emt 0:00:09]} Ke6 {[%emt 0:01:28]} 47. Kg3 {[%emt 0:00:30]} Kf6 {[%emt 0:00:52]} 48. Kg4 {[%emt 0:00:35]} Kg7 {[%emt 0:00:43]} 49. Nb2 {[%emt 0:04:03]} Kf6 {[%emt 0:01:53]} 50. Nc4 {[%emt 0:03:32]} Kg7 {[%emt 0:00:06]} 51. Kg3 {[%emt 0:00:18]} Kf6 {[%emt 0:00:08]} 52. Kf2 {[%emt 0:00:08]} Kg5 {[%emt 0:01:20]} 53. Ke3 {[%emt 0:00:13]} Kh4 {[%emt 0:01:30]} 54. Ke2 {[%emt 0:00:11]} Kg5 {[%emt 0:01:11]} 55. Nd2 {[%emt 0:03:28]} Kf6 {[%emt 0:04:14]} 56. Kd3 {[%emt 0:03:25]} Kg5 {[%emt 0:00:18]} 57. Nf1 {[%emt 0:01:06]} Kf4 {[%emt 0:00:26]} 58. Ke2 {[%emt 0:00:04]} Kg5 {[%emt 0:00:37]} 59. Ne3 {[%emt 0:00:24]} Kf6 {[%emt 0:00:23]} 60. Nc4 {[%emt 0:02:02]} Kg5 {[%emt 0:00:14]} 61. Nb2 {[%emt 0:00:19]} Kf6 {[%emt 0:00:14]} 62. Nd3 {[%emt 0:01:55]} Bb6 {[%emt 0:00:59]} 63. Kd2 {[%emt 0:02:02]} Ke6 {[%emt 0:01:15]} 64. Kc2 {[%emt 0:00:57]} Kd6 {[%emt 0:00:29]} 65. Kb3 {[%emt 0:00:15]} Ke6 {[%emt 0:00:38]} 66. Kc4 {[%emt 0:00:18]} Kd6 {[%emt 0:00:25]} 67. Nc1 {[%emt 0:01:19]} Be3 {[%emt 0:00:31]} 68. Nb3 {[%emt 0:00:06]} Bb6 {[%emt 0:00:02]} 69. Kd3 {[%emt 0:00:07]} Ke6 {[%emt 0:00:31]} 70. c4 {[%emt 0:00:05]} Kd6 {[%emt 0:00:46]} 71. c5+ {[%emt 0:00:07]} Bxc5 {[%emt 0:00:11]} 72. Nxa5 {[%emt 0:00:08]} Bd4 {[%emt 0:01:07]} 73. f4 {[%emt 0:00:51]} Kc5 {[%emt 0:00:29]} 74. Nb3+ {[%emt 0:01:41]} Kb4 {[%emt 0:00:05]} 75. Nxd4 {[%emt 0:00:05]} exd4 {[%emt 0:00:04]} 76. f5 {[%emt 0:00:04]} gxf5 {[%emt 0:00:30]} 77. exf5 {[%emt 0:00:10]} c5 {[%emt 0:01:18]} 78. f6 {[%emt 0:00:08]} c4+ {[%emt 0:00:37]} 79. Kxd4 {[%emt 0:00:11]} 1-0

[Event "Srdja Dragasevic Memorial-A 2024"]
[Site "Cetinje"]
[Date "2024.06.29"]
[Round "9.15"]
[White "Vujosevic, Vladimir"]
[Black "Miletic, Vuk"]
[Result "1/2-1/2"]
[ECO "A08"]
[WhiteElo "2306"]
[BlackElo "2193"]
[Annotator "RC"]
[PlyCount "38"]
[EventDate "2024.06.23"]
[EventType "swiss"]
[EventCountry "MNE"]
[SourceTitle "playchess.com"]
[Source "ChessBase"]
[SourceQuality "1"]
[TimeControl "40/5400+30:1800+30"]

1. e4 {[%emt 0:00:03]} c5 {[%emt 0:07:04]} 2. Nf3 {[%emt 0:00:11]} e6 {[%emt 0:00:46]} 3. d3 {[%emt 0:00:46]} Nc6 {[%emt 0:00:37]} 4. g3 {[%emt 0:00:34]} d5 {[%emt 0:00:14]} 5. Nbd2 {[%emt 0:00:27]} Bd6 {[%emt 0:00:37]} 6. Bg2 {[%emt 0:00:24]} Nge7 {[%emt 0:00:27]} 7. O-O {[%emt 0:00:54]} O-O {[%emt 0:00:23]} 8. Nh4 {[%emt 0:01:23]} Rb8 {[%emt 0:04:01]} 9. f4 {[%emt 0:01:15]} b5 {[%emt 0:00:31]} 10. e5 {[%emt 0:06:41]} Bc7 {[%emt 0:00:32]} 11. Ndf3 {[%emt 0:15:19]} h6 {[%emt 0:17:43]} 12. c3 {[%emt 0:04:47]} Bb6 {[%emt 0:11:42]} 13. d4 {[%emt 0:04:41]} b4 {[%emt 0:02:37]} 14. Rf2 {[%emt 0:04:58]} bxc3 {[%emt 0:13:33]} 15. bxc3 {[%emt 0:04:21]} Na5 {[%emt 0:00:54]} 16. Bf1 {[%emt 0:05:05]} Nc4 {[%emt 0:36:49]} 17. g4 {[%emt 0:47:11]} cxd4 18. cxd4 Nc6 {[%emt 0:01:00]} 19. g5 {[%emt 0:01:00]} g6 {[%emt 0:00:30]} 1/2-1/2

[Event "Srdja Dragasevic Memorial-A 2024"]
[Site "Cetinje"]
[Date "2024.06.29"]
[Round "9.16"]
[White "Djurovic, Peko"]
[Black "Skvortsova, Alena"]
[Result "1-0"]
[ECO "C41"]
[WhiteElo "2292"]
[BlackElo "2170"]
[Annotator "RC"]
[PlyCount "71"]
[EventDate "2024.06.23"]
[EventType "swiss"]
[EventCountry "MNE"]
[SourceTitle "playchess.com"]
[Source "ChessBase"]
[SourceQuality "1"]
[TimeControl "40/5400+30:1800+30"]

1. e4 {[%emt 0:06:15]} d6 {[%emt 0:00:07]} 2. d4 {[%emt 0:00:05]} Nf6 {[%emt 0:00:05]} 3. Nc3 {[%emt 0:00:03]} e5 {[%emt 0:00:06]} 4. Nf3 {[%emt 0:00:06]} Nbd7 {[%emt 0:00:16]} 5. Bc4 {[%emt 0:00:06]} Be7 {[%emt 0:00:09]} 6. O-O {[%emt 0:00:06]} O-O {[%emt 0:00:07]} 7. a4 {[%emt 0:00:34]} c6 {[%emt 0:00:21]} 8. h3 {[%emt 0:01:37]} h6 {[%emt 0:00:20]} 9. Re1 {[%emt 0:03:01]} Re8 {[%emt 0:00:07]} 10. a5 {[%emt 0:04:02]} Bf8 {[%emt 0:00:21]} 11. Ba2 {[%emt 0:00:15]} exd4 {[%emt 0:05:45]} 12. Nxd4 {[%emt 0:01:44]} Nc5 {[%emt 0:02:03]} 13. Qf3 {[%emt 0:03:35]} d5 {[%emt 0:06:50]} 14. e5 {[%emt 0:06:53]} Nfe4 {[%emt 0:07:18]} 15. Bf4 {[%emt 0:17:11]} Nxc3 {[%emt 0:07:05]} 16. Qxc3 {[%emt 0:00:27]} Ne6 {[%emt 0:08:01]} 17. Nxe6 {[%emt 0:00:46]} Bxe6 {[%emt 0:01:16]} 18. Qg3 {[%emt 0:00:11]} Kh8 {[%emt 0:02:39]} 19. Bb3 {[%emt 0:00:58]} b6 {[%emt 0:19:34]} 20. axb6 {[%emt 0:04:54]} axb6 {[%emt 0:00:31]} 21. c3 {[%emt 0:00:22]} Bf5 {[%emt 0:01:48]} 22. Rad1 {[%emt 0:02:17]} b5 {[%emt 0:04:23]} 23. Qf3 {[%emt 0:03:17]} Be4 {[%emt 0:02:50]} 24. Rxe4 {[%emt 0:02:28]} dxe4 {[%emt 0:00:05]} 25. Qxe4 {[%emt 0:00:03]} Qh4 {[%emt 0:05:27]} 26. Bxf7 {[%emt 0:07:25]} Red8 {[%emt 0:03:00]} 27. Rxd8 {[%emt 0:00:08]} Qxd8 {[%emt 0:02:32]} 28. Bb3 {[%emt 0:02:15]} Bc5 {[%emt 0:16:09]} 29. Bc2 {[%emt 0:06:18]} Qg8 {[%emt 0:00:11]} 30. e6 {[%emt 0:03:27]} Ra1+ {[%emt 0:02:12]} 31. Kh2 {[%emt 0:00:05]} Bxf2 {[%emt 0:00:09]} 32. e7 {[%emt 0:01:27]} Bg1+ {[%emt 0:00:53]} 33. Kg3 {[%emt 0:00:05]} Ra8 {[%emt 0:00:15]} 34. Qxc6 {[%emt 0:00:46]} Rc8 {[%emt 0:03:58]} 35. Bb3 {[%emt 0:01:28]} Rxc6 {[%emt 0:00:28]} 36. Bxg8 {[%emt 0:00:06]} 1-0

[Event "Srdja Dragasevic Memorial-A 2024"]
[Site "Cetinje"]
[Date "2024.06.29"]
[Round "9.17"]
[White "Alimpic, Aleksa"]
[Black "Slugin, Alexander"]
[Result "1-0"]
[ECO "A43"]
[WhiteElo "2281"]
[BlackElo "2157"]
[Annotator "RC"]
[PlyCount "49"]
[EventDate "2024.06.23"]
[EventType "swiss"]
[EventCountry "MNE"]
[SourceTitle "playchess.com"]
[Source "ChessBase"]
[SourceQuality "1"]
[TimeControl "40/5400+30:1800+30"]

1. d4 {[%emt 0:00:03]} e6 {[%emt 0:00:22]} 2. e4 {[%emt 0:00:25]} c5 {[%emt 0:00:09]} 3. d5 {[%emt 0:00:17]} Nf6 {[%emt 0:00:18]} 4. Nc3 {[%emt 0:00:13]} exd5 {[%emt 0:00:18]} 5. exd5 {[%emt 0:00:13]} d6 {[%emt 0:00:06]} 6. Nf3 {[%emt 0:00:48]} a6 {[%emt 0:00:09]} 7. a4 {[%emt 0:00:47]} b6 {[%emt 0:00:39]} 8. Be2 {[%emt 0:06:20]} Be7 {[%emt 0:00:11]} 9. O-O {[%emt 0:00:09]} O-O {[%emt 0:00:05]} 10. h3 {[%emt 0:02:22]} Re8 {[%emt 0:01:08]} 11. Re1 {[%emt 0:01:00]} Nbd7 {[%emt 0:00:09]} 12. Bc4 {[%emt 0:05:03]} Nf8 {[%emt 0:05:41]} 13. Bf4 {[%emt 0:06:34]} Bb7 {[%emt 0:02:39]} 14. Qd3 {[%emt 0:02:23]} Qd7 {[%emt 0:01:51]} 15. Bh2 {[%emt 0:09:49]} Ng6 {[%emt 0:00:28]} 16. Re2 {[%emt 0:03:55]} Nh5 {[%emt 0:00:24]} 17. Qd2 {[%emt 0:00:34]} Bf6 {[%emt 0:03:56]} 18. Ne4 {[%emt 0:15:40]} Bxb2 {[%emt 0:02:46]} 19. Rb1 {[%emt 0:00:15]} Be5 {[%emt 0:00:05]} 20. Nxe5 {[%emt 0:01:50]} Nxe5 {[%emt 0:00:17]} 21. Bxe5 {[%emt 0:00:18]} Rxe5 {[%emt 0:00:17]} 22. Rxb6 {[%emt 0:00:48]} Rae8 {[%emt 0:01:25]} 23. Nxd6 {[%emt 0:02:32]} Rxe2 {[%emt 0:05:03]} 24. Bxe2 {[%emt 0:00:12]} Qc7 {[%emt 0:00:08]} 25. Rxb7 {[%emt 0:02:28]} 1-0